[Event "Late-Titled-Tuesday-Blitz-February-20-2024"]
[Site "Chess.com"]
[Date "2024.02.20"]
[Round "5"]
[White "aistrel"]
[Black "rickywsb"]
[Result "1-0"]
[WhiteElo "2537"]
[BlackElo "2337"]
[TimeControl "180+1"]
[EndTime "14:51:10 PST"]
[Termination "aistrel won by resignation"]

1. d4 {[%clk 0:02:57.3]} 1... d5 {[%clk 0:02:59.5]} 2. Bf4 {[%clk 0:02:55.5]}
2... Nf6 {[%clk 0:02:58.5]} 3. e3 {[%clk 0:02:52.6]} 3... c5 {[%clk 0:02:59]} 4.
Nc3 {[%clk 0:02:53]} 4... Nc6 {[%clk 0:02:59.2]} 5. Nb5 {[%clk 0:02:52.9]} 5...
e5 {[%clk 0:02:53]} 6. Bxe5 {[%clk 0:02:51.5]} 6... Nxe5 {[%clk 0:02:52.2]} 7.
dxe5 {[%clk 0:02:52.4]} 7... Ne4 {[%clk 0:02:49.6]} 8. Qxd5 {[%clk 0:02:52.8]}
8... Qxd5 {[%clk 0:02:38.4]} 9. Nc7+ {[%clk 0:02:52.2]} 9... Kd7 {[%clk
0:02:36.7]} 10. Nxd5 {[%clk 0:02:53.1]} 10... Kc6 {[%clk 0:02:37.1]} 11. c4
{[%clk 0:02:38.9]} 11... b5 {[%clk 0:02:14.5]} 12. f3 {[%clk 0:02:29.8]} 12...
Ng5 {[%clk 0:02:13.6]} 13. O-O-O {[%clk 0:02:13.3]} 13... b4 {[%clk 0:02:06.3]}
14. Bd3 {[%clk 0:02:07.1]} 14... g6 {[%clk 0:02:00.8]} 15. f4 {[%clk 0:02:03.3]}
15... Ne6 {[%clk 0:02:00.5]} 16. Nxb4+ {[%clk 0:02:02.8]} 1-0

[Event "Late-Titled-Tuesday-Blitz-February-20-2024"]
[Site "Chess.com"]
[Date "2024.02.20"]
[Round "5"]
[White "Sajkochess"]
[Black "tgpgoat"]
[Result "1-0"]
[WhiteElo "2381"]
[BlackElo "2546"]
[TimeControl "180+1"]
[EndTime "14:51:49 PST"]
[Termination "Sajkochess won by resignation"]

1. e4 {[%clk 0:03:00.9]} 1... c5 {[%clk 0:02:45.7]} 2. Nf3 {[%clk 0:03:00.7]}
2... e6 {[%clk 0:02:43.2]} 3. d4 {[%clk 0:03:00.9]} 3... cxd4 {[%clk 0:02:43.6]}
4. Nxd4 {[%clk 0:03:01.8]} 4... Nc6 {[%clk 0:02:44.1]} 5. Nc3 {[%clk 0:03:01.7]}
5... Qc7 {[%clk 0:02:44.3]} 6. g3 {[%clk 0:03:02.2]} 6... Nf6 {[%clk 0:02:43.4]}
7. Ndb5 {[%clk 0:02:59.8]} 7... Qb8 {[%clk 0:02:40.4]} 8. Bf4 {[%clk 0:03:00.3]}
8... e5 {[%clk 0:02:40.4]} 9. Bg5 {[%clk 0:03:00.7]} 9... a6 {[%clk 0:02:39.2]}
10. Bxf6 {[%clk 0:03:00]} 10... axb5 {[%clk 0:02:30.3]} 11. Bg5 {[%clk
0:02:57.5]} 11... b4 {[%clk 0:02:30.4]} 12. Nd5 {[%clk 0:02:52.1]} 12... Bc5
{[%clk 0:02:28.6]} 13. Bc4 {[%clk 0:01:56.6]} 13... O-O {[%clk 0:02:27.6]} 14.
Qh5 {[%clk 0:01:44.6]} 14... Na5 {[%clk 0:02:10.7]} 15. Nf6+ {[%clk 0:01:33.4]}
15... gxf6 {[%clk 0:02:10.3]} 16. Bxf6 {[%clk 0:01:33.4]} 16... Bxf2+ {[%clk
0:01:45.4]} 1-0

[Event "Late-Titled-Tuesday-Blitz-February-20-2024"]
[Site "Chess.com"]
[Date "2024.02.20"]
[Round "5"]
[White "DraningWaterHi"]
[Black "noblerone"]
[Result "0-1"]
[WhiteElo "2247"]
[BlackElo "2514"]
[TimeControl "180+1"]
[EndTime "14:52:08 PST"]
[Termination "noblerone won by resignation"]

1. d4 {[%clk 0:03:00.9]} 1... d5 {[%clk 0:02:53.6]} 2. Bf4 {[%clk 0:02:59.7]}
2... e6 {[%clk 0:02:51.4]} 3. e3 {[%clk 0:02:59.5]} 3... Bd6 {[%clk 0:02:50.7]}
4. Nf3 {[%clk 0:03:00]} 4... Bxf4 {[%clk 0:02:50.2]} 5. exf4 {[%clk 0:03:00.9]}
5... c5 {[%clk 0:02:48.4]} 6. c3 {[%clk 0:03:00.4]} 6... cxd4 {[%clk 0:02:46.8]}
7. cxd4 {[%clk 0:02:59]} 7... Nc6 {[%clk 0:02:45.3]} 8. Nc3 {[%clk 0:02:58.3]}
8... Nf6 {[%clk 0:02:41.5]} 9. Ne5 {[%clk 0:02:55.5]} 9... Qb6 {[%clk
0:02:37.3]} 10. Bb5 {[%clk 0:02:54.4]} 10... O-O {[%clk 0:02:36.1]} 11. Bxc6
{[%clk 0:02:53.9]} 11... bxc6 {[%clk 0:02:35.4]} 12. Qd2 {[%clk 0:02:54.1]}
12... Ba6 {[%clk 0:02:31.2]} 13. Na4 {[%clk 0:02:53.5]} 13... Qb5 {[%clk
0:02:28.7]} 14. Nc5 {[%clk 0:02:53.2]} 14... Ne4 {[%clk 0:02:22]} 15. Nxe4
{[%clk 0:02:51.9]} 15... dxe4 {[%clk 0:02:22.9]} 16. b3 {[%clk 0:02:49.2]} 16...
Rfd8 {[%clk 0:02:21.6]} 17. Rc1 {[%clk 0:02:43.4]} 17... Rac8 {[%clk 0:02:12.4]}
18. Rc5 {[%clk 0:02:42.1]} 18... Qb6 {[%clk 0:02:06.8]} 19. h4 {[%clk
0:02:40.7]} 19... f6 {[%clk 0:02:06.4]} 20. Ng4 {[%clk 0:02:34.3]} 20... Rd7
{[%clk 0:01:19]} 21. Ne3 {[%clk 0:02:11.1]} 21... Rcd8 {[%clk 0:01:17]} 22. Nc2
{[%clk 0:02:02]} 22... Qxc5 {[%clk 0:01:12]} 0-1

[Event "Late-Titled-Tuesday-Blitz-February-20-2024"]
[Site "Chess.com"]
[Date "2024.02.20"]
[Round "5"]
[White "mirciulica14"]
[Black "FREZZY23"]
[Result "1-0"]
[WhiteElo "2647"]
[BlackElo "2420"]
[TimeControl "180+1"]
[EndTime "14:52:09 PST"]
[Termination "mirciulica14 won by resignation"]

1. Nf3 {[%clk 0:03:00.9]} 1... Nf6 {[%clk 0:02:59.8]} 2. b3 {[%clk 0:02:58.4]}
2... g6 {[%clk 0:03:00.2]} 3. Bb2 {[%clk 0:02:57.7]} 3... Bg7 {[%clk 0:03:00.7]}
4. g3 {[%clk 0:02:56.9]} 4... O-O {[%clk 0:03:01.3]} 5. Bg2 {[%clk 0:02:57.1]}
5... d5 {[%clk 0:03:01.3]} 6. c4 {[%clk 0:02:51]} 6... c5 {[%clk 0:02:59.4]} 7.
cxd5 {[%clk 0:02:49.9]} 7... Nxd5 {[%clk 0:02:53.6]} 8. Bxg7 {[%clk 0:02:49.2]}
8... Kxg7 {[%clk 0:02:54.5]} 9. h4 {[%clk 0:02:34]} 9... h5 {[%clk 0:02:47.6]}
10. Qc1 {[%clk 0:02:00]} 10... Qd6 {[%clk 0:02:27.6]} 11. Nc3 {[%clk 0:01:59.7]}
11... Nxc3 {[%clk 0:02:26.5]} 12. Qxc3+ {[%clk 0:01:59.2]} 12... f6 {[%clk
0:02:21.1]} 13. Rc1 {[%clk 0:01:56.5]} 13... Nd7 {[%clk 0:02:17.3]} 14. O-O
{[%clk 0:01:49.8]} 14... Rb8 {[%clk 0:02:16.8]} 15. Rfd1 {[%clk 0:01:45.4]}
15... b6 {[%clk 0:02:16.2]} 16. d4 {[%clk 0:01:45.5]} 16... cxd4 {[%clk
0:02:13.6]} 17. Nxd4 {[%clk 0:01:41.1]} 17... Bb7 {[%clk 0:01:52.9]} 18. Nf5+
{[%clk 0:01:28.1]} 18... gxf5 {[%clk 0:01:49.4]} 19. Rxd6 {[%clk 0:01:28.3]}
19... exd6 {[%clk 0:01:50]} 20. Qc7 {[%clk 0:01:27.8]} 20... Bxg2 {[%clk
0:01:48.2]} 21. Qxd7+ {[%clk 0:01:25.7]} 21... Rf7 {[%clk 0:01:48.1]} 22. Qxd6
{[%clk 0:01:25.9]} 1-0

[Event "Late-Titled-Tuesday-Blitz-February-20-2024"]
[Site "Chess.com"]
[Date "2024.02.20"]
[Round "5"]
[White "ansko1999"]
[Black "a_kandil"]
[Result "1-0"]
[WhiteElo "2661"]
[BlackElo "2425"]
[TimeControl "180+1"]
[EndTime "14:52:37 PST"]
[Termination "ansko1999 won by resignation"]

1. Nf3 {[%clk 0:03:00.9]} 1... c5 {[%clk 0:03:00.2]} 2. e4 {[%clk 0:03:00.4]}
2... d6 {[%clk 0:02:59.6]} 3. Bb5+ {[%clk 0:03:00.8]} 3... Nd7 {[%clk
0:02:59.6]} 4. Ba4 {[%clk 0:03:01.2]} 4... a6 {[%clk 0:02:59.3]} 5. c4 {[%clk
0:03:00.1]} 5... g6 {[%clk 0:02:59.1]} 6. O-O {[%clk 0:03:00.2]} 6... Bg7 {[%clk
0:02:59.5]} 7. Nc3 {[%clk 0:03:00.4]} 7... Nf6 {[%clk 0:02:59.6]} 8. d3 {[%clk
0:03:00.9]} 8... O-O {[%clk 0:02:59.7]} 9. h3 {[%clk 0:03:01.4]} 9... Rb8 {[%clk
0:02:59.5]} 10. Be3 {[%clk 0:02:59.5]} 10... Ne8 {[%clk 0:02:45.6]} 11. d4
{[%clk 0:02:57.5]} 11... cxd4 {[%clk 0:02:46.5]} 12. Nxd4 {[%clk 0:02:53.9]}
12... Nc5 {[%clk 0:02:46.8]} 13. Bc2 {[%clk 0:02:49.4]} 13... Nc7 {[%clk
0:02:47.1]} 14. Rb1 {[%clk 0:02:44]} 14... Bd7 {[%clk 0:02:47.2]} 15. Qd2 {[%clk
0:02:38]} 15... b5 {[%clk 0:02:45.4]} 16. b4 {[%clk 0:02:31]} 16... N5e6 {[%clk
0:02:42.8]} 17. cxb5 {[%clk 0:02:28.2]} 17... axb5 {[%clk 0:02:38.3]} 18. Bb3
{[%clk 0:02:24.6]} 18... Nxd4 {[%clk 0:02:26]} 19. Bxd4 {[%clk 0:02:25.5]} 19...
Bc6 {[%clk 0:02:24.3]} 20. Bxg7 {[%clk 0:02:25]} 20... Kxg7 {[%clk 0:02:25.2]}
21. Rbc1 {[%clk 0:02:24.1]} 21... Qd7 {[%clk 0:02:17.8]} 22. Nd5 {[%clk
0:02:18.2]} 22... Rfc8 {[%clk 0:02:07.7]} 23. Qc3+ {[%clk 0:02:12.4]} 23... Kg8
{[%clk 0:01:59]} 24. Qxc6 {[%clk 0:02:10.2]} 24... Qxc6 {[%clk 0:01:57.6]} 25.
Rxc6 {[%clk 0:02:11.1]} 25... Nxd5 {[%clk 0:01:58]} 26. Rxc8+ {[%clk 0:02:03.6]}
26... Rxc8 {[%clk 0:01:57.5]} 27. exd5 {[%clk 0:01:54.7]} 27... Kg7 {[%clk
0:01:57.7]} 28. a4 {[%clk 0:01:48.5]} 28... bxa4 {[%clk 0:01:57]} 29. Bxa4
{[%clk 0:01:49.4]} 29... Kf6 {[%clk 0:01:57.3]} 30. Bc6 {[%clk 0:01:49.2]} 30...
Rb8 {[%clk 0:01:53.3]} 31. b5 {[%clk 0:01:49.2]} 31... e6 {[%clk 0:01:53.9]} 32.
Rb1 {[%clk 0:01:47.6]} 32... Ke5 {[%clk 0:01:53.8]} 33. b6 {[%clk 0:01:45.3]}
33... Kd4 {[%clk 0:01:49.4]} 34. b7 {[%clk 0:01:37.7]} 34... Kc5 {[%clk
0:01:48.8]} 35. Rb5+ {[%clk 0:01:36]} 35... Kc4 {[%clk 0:01:48.9]} 36. Ra5
{[%clk 0:01:35.9]} 1-0

[Event "Late-Titled-Tuesday-Blitz-February-20-2024"]
[Site "Chess.com"]
[Date "2024.02.20"]
[Round "5"]
[White "Alphafischer2019"]
[Black "dropstoneDP"]
[Result "0-1"]
[WhiteElo "2671"]
[BlackElo "3007"]
[TimeControl "180+1"]
[EndTime "14:52:46 PST"]
[Termination "dropstoneDP won by resignation"]

1. Nf3 {[%clk 0:03:00.9]} 1... d5 {[%clk 0:02:59.9]} 2. g3 {[%clk 0:03:01.3]}
2... g6 {[%clk 0:02:59]} 3. Bg2 {[%clk 0:03:00.4]} 3... Bg7 {[%clk 0:02:59.5]}
4. d4 {[%clk 0:03:01.3]} 4... Nf6 {[%clk 0:02:59.5]} 5. O-O {[%clk 0:03:01.9]}
5... O-O {[%clk 0:03:00.1]} 6. c4 {[%clk 0:03:02.7]} 6... dxc4 {[%clk 0:03:01]}
7. Ne5 {[%clk 0:03:03]} 7... c5 {[%clk 0:02:59.5]} 8. dxc5 {[%clk 0:02:53.1]}
8... Qc7 {[%clk 0:02:48.5]} 9. Nxc4 {[%clk 0:02:43.8]} 9... Qxc5 {[%clk
0:02:41.9]} 10. Nba3 {[%clk 0:02:11.7]} 10... Nc6 {[%clk 0:02:40.5]} 11. Be3
{[%clk 0:02:10.2]} 11... Qh5 {[%clk 0:02:40.4]} 12. Bf4 {[%clk 0:02:00.2]} 12...
Bh3 {[%clk 0:02:37.1]} 13. Re1 {[%clk 0:01:52.9]} 13... Rfd8 {[%clk 0:02:34]}
14. Qb3 {[%clk 0:01:51.5]} 14... Bxg2 {[%clk 0:02:27.2]} 15. Kxg2 {[%clk
0:01:51.1]} 15... Nd5 {[%clk 0:02:19.3]} 16. Qf3 {[%clk 0:01:36.2]} 16... Qxf3+
{[%clk 0:02:16.7]} 17. Kxf3 {[%clk 0:01:30]} 17... Nd4+ {[%clk 0:02:13.8]} 18.
Kg2 {[%clk 0:01:30.6]} 18... Nxf4+ {[%clk 0:02:07.4]} 19. gxf4 {[%clk
0:01:30.8]} 19... b5 {[%clk 0:02:00.9]} 20. Ne3 {[%clk 0:01:22.2]} 20... a6
{[%clk 0:01:56.1]} 21. Rab1 {[%clk 0:01:15.1]} 21... Rac8 {[%clk 0:01:53.9]} 22.
Kg3 {[%clk 0:01:02.3]} 22... e6 {[%clk 0:01:53.4]} 23. Rbc1 {[%clk 0:00:54.3]}
23... Rxc1 {[%clk 0:01:51.8]} 24. Rxc1 {[%clk 0:00:55]} 24... Nxe2+ {[%clk
0:01:51.8]} 0-1

[Event "Late-Titled-Tuesday-Blitz-February-20-2024"]
[Site "Chess.com"]
[Date "2024.02.20"]
[Round "5"]
[White "CFalcons8"]
[Black "maxip32"]
[Result "0-1"]
[WhiteElo "2422"]
[BlackElo "2648"]
[TimeControl "180+1"]
[EndTime "14:52:52 PST"]
[Termination "maxip32 won by resignation"]

1. c4 {[%clk 0:03:00.9]} 1... Nf6 {[%clk 0:02:58.7]} 2. Nf3 {[%clk 0:02:59.8]}
2... e6 {[%clk 0:02:58.1]} 3. d4 {[%clk 0:02:59.5]} 3... d5 {[%clk 0:02:59]} 4.
g3 {[%clk 0:02:59.6]} 4... Bb4+ {[%clk 0:02:57.8]} 5. Bd2 {[%clk 0:02:59.3]}
5... Be7 {[%clk 0:02:57.9]} 6. Bg2 {[%clk 0:02:59.8]} 6... O-O {[%clk
0:02:58.7]} 7. O-O {[%clk 0:03:00.4]} 7... Nbd7 {[%clk 0:02:58.8]} 8. Qc2 {[%clk
0:02:59.5]} 8... c6 {[%clk 0:02:58.9]} 9. Rd1 {[%clk 0:02:58.3]} 9... Ne4 {[%clk
0:02:59]} 10. Bf4 {[%clk 0:02:58.2]} 10... g5 {[%clk 0:02:59.1]} 11. Be3 {[%clk
0:02:57.6]} 11... f5 {[%clk 0:02:58.3]} 12. Bc1 {[%clk 0:02:34.7]} 12... Bf6
{[%clk 0:02:37.2]} 13. Nc3 {[%clk 0:02:26.2]} 13... Nd6 {[%clk 0:02:36.7]} 14.
cxd5 {[%clk 0:02:22.5]} 14... exd5 {[%clk 0:02:37.6]} 15. b3 {[%clk 0:02:16.5]}
15... Ne4 {[%clk 0:02:37.5]} 16. Ba3 {[%clk 0:02:13.6]} 16... Re8 {[%clk
0:02:37.7]} 17. Bh3 {[%clk 0:02:09.7]} 17... Nf8 {[%clk 0:02:37]} 18. Bg2 {[%clk
0:02:09]} 18... Ne6 {[%clk 0:02:33.1]} 19. e3 {[%clk 0:02:03.2]} 19... f4 {[%clk
0:02:33]} 20. Nxe4 {[%clk 0:02:02.4]} 20... dxe4 {[%clk 0:02:33.1]} 21. Qxe4
{[%clk 0:02:03.3]} 21... fxe3 {[%clk 0:02:24.9]} 22. Qxe3 {[%clk 0:01:52.2]}
22... Nf4 {[%clk 0:02:21.3]} 23. Qd2 {[%clk 0:01:47.1]} 23... Nxg2 {[%clk
0:02:20.3]} 24. Kxg2 {[%clk 0:01:48]} 24... Bf5 {[%clk 0:02:16.1]} 25. Ne5
{[%clk 0:01:43.9]} 25... Qc8 {[%clk 0:02:10.4]} 26. Re1 {[%clk 0:01:38.5]} 26...
Qe6 {[%clk 0:02:07.6]} 27. Qe3 {[%clk 0:01:28.5]} 27... Rad8 {[%clk 0:02:01.5]}
28. Rad1 {[%clk 0:01:22.8]} 28... Bh3+ {[%clk 0:01:50.6]} 29. Kg1 {[%clk
0:01:21.2]} 29... Qd5 {[%clk 0:01:50.5]} 30. Qf3 {[%clk 0:01:18.1]} 30... Rxe5
{[%clk 0:01:44.3]} 31. Qxd5+ {[%clk 0:01:13.9]} 31... Rexd5 {[%clk 0:01:45.2]}
32. Be7 {[%clk 0:01:12.1]} 32... Bxe7 {[%clk 0:01:43.4]} 33. Rxe7 {[%clk
0:01:13]} 33... Rxd4 {[%clk 0:01:43.9]} 0-1

[Event "Late-Titled-Tuesday-Blitz-February-20-2024"]
[Site "Chess.com"]
[Date "2024.02.20"]
[Round "5"]
[White "jlf287"]
[Black "vrekhson"]
[Result "0-1"]
[WhiteElo "2509"]
[BlackElo "2353"]
[TimeControl "180+1"]
[EndTime "14:53:03 PST"]
[Termination "vrekhson won by resignation"]

1. d4 {[%clk 0:03:00.9]} 1... Nf6 {[%clk 0:02:59.5]} 2. c4 {[%clk 0:03:00.7]}
2... c5 {[%clk 0:02:59.7]} 3. d5 {[%clk 0:03:00.8]} 3... b5 {[%clk 0:03:00]} 4.
Qc2 {[%clk 0:03:00]} 4... bxc4 {[%clk 0:02:58.8]} 5. e4 {[%clk 0:02:56.6]} 5...
d6 {[%clk 0:02:57.5]} 6. Bxc4 {[%clk 0:02:53.4]} 6... g6 {[%clk 0:02:56.5]} 7.
Nc3 {[%clk 0:02:48.7]} 7... Bg7 {[%clk 0:02:56.6]} 8. Nf3 {[%clk 0:02:49]} 8...
O-O {[%clk 0:02:56.1]} 9. h3 {[%clk 0:02:49.3]} 9... Ba6 {[%clk 0:02:52.3]} 10.
Nd2 {[%clk 0:02:38.2]} 10... Bxc4 {[%clk 0:02:50.3]} 11. Nxc4 {[%clk 0:02:38.1]}
11... Nbd7 {[%clk 0:02:48.2]} 12. O-O {[%clk 0:02:24.3]} 12... Rb8 {[%clk
0:02:29.7]} 13. b3 {[%clk 0:02:24]} 13... Nxe4 {[%clk 0:02:17.9]} 14. Qxe4
{[%clk 0:02:17.4]} 14... Bxc3 {[%clk 0:02:15.4]} 15. Rb1 {[%clk 0:02:17.8]}
15... Ne5 {[%clk 0:01:40.5]} 16. Ne3 {[%clk 0:02:14.4]} 16... Qc8 {[%clk
0:01:30.4]} 17. f4 {[%clk 0:02:14.4]} 17... Nd7 {[%clk 0:01:14.7]} 18. Qxe7
{[%clk 0:02:07.8]} 18... Re8 {[%clk 0:01:10.2]} 19. Qxd6 {[%clk 0:02:06.6]}
19... Bd4 {[%clk 0:01:10.5]} 20. Rf3 {[%clk 0:02:04.3]} 20... Rb6 {[%clk
0:01:04.3]} 21. Qxb6 {[%clk 0:01:55.5]} 21... Nxb6 {[%clk 0:00:59.7]} 22. Kh2
{[%clk 0:01:56.4]} 22... Bxe3 {[%clk 0:00:57.4]} 23. Bxe3 {[%clk 0:01:57.3]}
23... Nxd5 {[%clk 0:00:57.4]} 24. Bd2 {[%clk 0:01:58]} 24... Qc7 {[%clk
0:00:56.4]} 25. Rd1 {[%clk 0:01:56.4]} 25... c4 {[%clk 0:00:53.2]} 26. bxc4
{[%clk 0:01:55.8]} 26... Qxc4 {[%clk 0:00:52.8]} 27. Kh1 {[%clk 0:01:55.6]}
27... Re2 {[%clk 0:00:50]} 28. f5 {[%clk 0:01:53.8]} 28... Qc2 {[%clk
0:00:43.3]} 0-1

[Event "Late-Titled-Tuesday-Blitz-February-20-2024"]
[Site "Chess.com"]
[Date "2024.02.20"]
[Round "5"]
[White "Capablanca_Oujda_2021"]
[Black "AlexTruskavetsky"]
[Result "0-1"]
[WhiteElo "2511"]
[BlackElo "2720"]
[TimeControl "180+1"]
[EndTime "14:53:07 PST"]
[Termination "AlexTruskavetsky won by resignation"]

1. e4 {[%clk 0:03:00]} 1... c5 {[%clk 0:02:59.9]} 2. Nf3 {[%clk 0:02:59.2]} 2...
Nc6 {[%clk 0:02:59.7]} 3. d4 {[%clk 0:02:59.3]} 3... cxd4 {[%clk 0:03:00.2]} 4.
Nxd4 {[%clk 0:03:00.2]} 4... Nf6 {[%clk 0:03:00.2]} 5. Nc3 {[%clk 0:03:00.6]}
5... e6 {[%clk 0:03:00.8]} 6. Be2 {[%clk 0:02:53.1]} 6... Bb4 {[%clk 0:03:00.5]}
7. Nxc6 {[%clk 0:02:44.8]} 7... bxc6 {[%clk 0:03:00.6]} 8. O-O {[%clk
0:02:20.5]} 8... d5 {[%clk 0:03:00.6]} 9. exd5 {[%clk 0:02:15.9]} 9... exd5
{[%clk 0:03:00.7]} 10. Qd4 {[%clk 0:02:00.4]} 10... Be7 {[%clk 0:03:00.3]} 11.
Bf4 {[%clk 0:01:54.6]} 11... O-O {[%clk 0:03:00.4]} 12. Bg3 {[%clk 0:01:50.9]}
12... Bf5 {[%clk 0:02:58]} 13. Rac1 {[%clk 0:01:44.2]} 13... Bd6 {[%clk
0:02:55.9]} 14. Bh4 {[%clk 0:01:35.4]} 14... Rb8 {[%clk 0:02:54]} 15. Bf3 {[%clk
0:01:31.6]} 15... Rb4 {[%clk 0:02:52]} 16. Bxf6 {[%clk 0:01:31.3]} 16... Rxd4
{[%clk 0:02:49.6]} 17. Bxd8 {[%clk 0:01:31.1]} 17... Rxd8 {[%clk 0:02:50.5]} 18.
Nd1 {[%clk 0:01:11.6]} 18... Rb4 {[%clk 0:02:42.1]} 19. c3 {[%clk 0:01:10.8]}
19... Rbb8 {[%clk 0:02:41.5]} 20. h3 {[%clk 0:01:06.8]} 20... Bf4 {[%clk
0:02:39.9]} 21. Ra1 {[%clk 0:01:04.7]} 21... Re8 {[%clk 0:02:38.7]} 22. g4
{[%clk 0:01:00.5]} 22... Bd3 {[%clk 0:02:38.4]} 23. b4 {[%clk 0:00:15.1]} 23...
Bxf1 {[%clk 0:02:35.9]} 24. Kxf1 {[%clk 0:00:16]} 24... Bd2 {[%clk 0:02:35.4]}
25. Be2 {[%clk 0:00:15.3]} 25... Re5 {[%clk 0:02:32.3]} 26. a4 {[%clk
0:00:15.4]} 26... Rbe8 {[%clk 0:02:32]} 27. Bd3 {[%clk 0:00:15.1]} 27... Re1+
{[%clk 0:02:32.1]} 28. Kg2 {[%clk 0:00:14.7]} 28... Bxc3 {[%clk 0:02:32.7]} 29.
Rb1 {[%clk 0:00:14.1]} 29... Bxb4 {[%clk 0:02:31.4]} 30. Rxb4 {[%clk 0:00:08.4]}
30... Rxd1 {[%clk 0:02:31.8]} 31. Rb7 {[%clk 0:00:09.3]} 31... Rxd3 {[%clk
0:02:31.9]} 0-1

[Event "Late-Titled-Tuesday-Blitz-February-20-2024"]
[Site "Chess.com"]
[Date "2024.02.20"]
[Round "5"]
[White "Casper"]
[Black "K_A_S_T_O_R"]
[Result "0-1"]
[WhiteElo "2564"]
[BlackElo "2793"]
[TimeControl "180+1"]
[EndTime "14:53:08 PST"]
[Termination "K_A_S_T_O_R won by resignation"]

1. Nf3 {[%clk 0:02:57.7]} 1... c5 {[%clk 0:02:58.9]} 2. b3 {[%clk 0:02:56.8]}
2... d5 {[%clk 0:02:58.5]} 3. Bb2 {[%clk 0:02:57.3]} 3... f6 {[%clk 0:02:58.6]}
4. d4 {[%clk 0:02:57.1]} 4... cxd4 {[%clk 0:02:58.3]} 5. Nxd4 {[%clk 0:02:52.8]}
5... e5 {[%clk 0:02:58]} 6. Nf3 {[%clk 0:02:49.1]} 6... Nc6 {[%clk 0:02:57.2]}
7. e3 {[%clk 0:02:49.2]} 7... Be6 {[%clk 0:02:55.9]} 8. Nbd2 {[%clk 0:02:33.9]}
8... Qd7 {[%clk 0:02:52.5]} 9. Bb5 {[%clk 0:02:25.9]} 9... a6 {[%clk 0:02:51.2]}
10. Bxc6 {[%clk 0:02:25.7]} 10... bxc6 {[%clk 0:02:51.7]} 11. O-O {[%clk
0:02:26.2]} 11... Bd6 {[%clk 0:02:50]} 12. c4 {[%clk 0:02:25.9]} 12... Ne7
{[%clk 0:02:50.3]} 13. cxd5 {[%clk 0:02:25.7]} 13... cxd5 {[%clk 0:02:50.1]} 14.
Rc1 {[%clk 0:02:26.1]} 14... O-O {[%clk 0:02:48.4]} 15. Qe2 {[%clk 0:02:21.2]}
15... Rfc8 {[%clk 0:02:47]} 16. Rxc8+ {[%clk 0:02:19.5]} 16... Qxc8 {[%clk
0:02:36.4]} 17. Rc1 {[%clk 0:02:19]} 17... Qb7 {[%clk 0:02:36.3]} 18. Ne1 {[%clk
0:02:05.7]} 18... Rc8 {[%clk 0:02:33.9]} 19. Qd1 {[%clk 0:01:56.9]} 19... h6
{[%clk 0:02:26.2]} 20. Rxc8+ {[%clk 0:01:53.6]} 20... Qxc8 {[%clk 0:02:25.3]}
21. Qc2 {[%clk 0:01:54.5]} 21... Qb7 {[%clk 0:02:23.2]} 22. Nd3 {[%clk
0:01:53.6]} 22... Qc6 {[%clk 0:02:17.9]} 23. Qc3 {[%clk 0:01:42.9]} 23... Kf7
{[%clk 0:02:10.5]} 24. Kf1 {[%clk 0:01:35.3]} 24... Qb5 {[%clk 0:02:05.6]} 25.
Ke1 {[%clk 0:01:32.7]} 25... Nc6 {[%clk 0:02:04.9]} 26. h4 {[%clk 0:00:49.4]}
26... Bf5 {[%clk 0:02:02.2]} 27. Nc1 {[%clk 0:00:43.8]} 27... Bb4 {[%clk
0:01:59.9]} 28. a4 {[%clk 0:00:43.2]} 28... Qb6 {[%clk 0:01:56]} 29. a5 {[%clk
0:00:42.5]} 29... Qb5 {[%clk 0:01:55.1]} 0-1

[Event "Late-Titled-Tuesday-Blitz-February-20-2024"]
[Site "Chess.com"]
[Date "2024.02.20"]
[Round "5"]
[White "Duhless"]
[Black "platy3"]
[Result "1-0"]
[WhiteElo "3094"]
[BlackElo "2949"]
[TimeControl "180+1"]
[EndTime "14:53:21 PST"]
[Termination "Duhless won by resignation"]

1. d4 {[%clk 0:03:00.9]} 1... d5 {[%clk 0:02:59.4]} 2. Nf3 {[%clk 0:03:00.7]}
2... Nf6 {[%clk 0:02:58.6]} 3. c4 {[%clk 0:03:01.1]} 3... e6 {[%clk 0:02:58.7]}
4. g3 {[%clk 0:03:01.7]} 4... Be7 {[%clk 0:02:55.5]} 5. Bg2 {[%clk 0:03:01.2]}
5... O-O {[%clk 0:02:56]} 6. O-O {[%clk 0:03:01.1]} 6... dxc4 {[%clk 0:02:55.3]}
7. Qc2 {[%clk 0:03:01]} 7... a6 {[%clk 0:02:54.6]} 8. a4 {[%clk 0:03:00.6]} 8...
Bd7 {[%clk 0:02:54.1]} 9. Qxc4 {[%clk 0:03:00]} 9... Bc6 {[%clk 0:02:53.8]} 10.
Bg5 {[%clk 0:02:58.7]} 10... a5 {[%clk 0:02:53.6]} 11. Nc3 {[%clk 0:02:56.8]}
11... Na6 {[%clk 0:02:51.6]} 12. Bxf6 {[%clk 0:02:44.4]} 12... Bxf6 {[%clk
0:02:51.4]} 13. e4 {[%clk 0:02:44.7]} 13... Nb4 {[%clk 0:02:48]} 14. Rfd1 {[%clk
0:02:42.8]} 14... g6 {[%clk 0:02:42.2]} 15. h4 {[%clk 0:02:39.2]} 15... b6
{[%clk 0:02:31.6]} 16. Rac1 {[%clk 0:02:37.4]} 16... Bb7 {[%clk 0:02:29.9]} 17.
e5 {[%clk 0:02:32.6]} 17... Bg7 {[%clk 0:02:27.3]} 18. Ng5 {[%clk 0:02:30.3]}
18... Bxg2 {[%clk 0:01:55.3]} 19. Kxg2 {[%clk 0:02:31.2]} 19... Qe7 {[%clk
0:01:55.8]} 20. Nce4 {[%clk 0:02:17.9]} 20... Rad8 {[%clk 0:01:40.9]} 21. Qxc7
{[%clk 0:02:09]} 21... Qxc7 {[%clk 0:00:32]} 22. Rxc7 {[%clk 0:02:08.4]} 22...
h6 {[%clk 0:00:32.9]} 23. Nf3 {[%clk 0:02:05.9]} 23... Rd5 {[%clk 0:00:25]} 24.
Rb7 {[%clk 0:01:55.2]} 24... Nc6 {[%clk 0:00:23.3]} 25. Nc3 {[%clk 0:01:52.6]}
1-0